bitfinex-derivatives/quotes_BTCF0:USTF0_20241210
["timestamp","ask_amount","ask_price","bid_price","bid_amount"]
[1733835845013,0.37091632,97430.0,97429.0,0.23860928]
[1733835845315,0.37091632,97430.0,97429.0,0.05450868]
[1733835845504,0.37091632,97430.0,97429.0,0.23858356]
[1733835846210,0.3608,97430.0,97429.0,0.23858356]
[1733835846613,0.3618,97430.0,97429.0,0.23958356]
[1733835847200,0.001,97430.0,97429.0,0.23955763]
[1733835847620,0.001,97430.0,97429.0,0.05550868]
[1733835849111,0.001,97430.0,97429.0,0.09780868]
[1733835849716,0.001,97430.0,97429.0,0.09680868]
[1733835849717,0.3608,97430.0,97429.0,0.09680868]
[1733835849904,0.3608,97430.0,97429.0,0.28385539]
[1733835850102,0.3608,97430.0,97429.0,0.09980868]
[1733835850501,0.3608,97430.0,97429.0,0.28383216]
[1733835850701,0.01048994,97433.0,97432.0,0.051299]
[1733835850912,0.00011892,97435.0,97432.0,0.05450668]
[1733835851113,0.00011892,97435.0,97433.0,0.00320768]
[1733835851307,0.01061812,97435.0,97434.0,0.00320768]
[1733835851515,0.00011892,97435.0,97434.0,0.00320768]
[1733835851902,0.00011892,97435.0,97434.0,0.01141768]
[1733835852417,0.00011892,97435.0,97434.0,0.04827122]
[1733835852714,0.00011892,97435.0,97434.0,0.23222131]
[1733835853108,0.00111892,97435.0,97434.0,0.04819986]
[1733835853414,0.00111892,97435.0,97434.0,0.40899986]
[1733835853717,0.10120872,97450.0,97434.0,0.40899986]
[1733835853917,0.10120872,97450.0,97435.0,0.03998986]
[1733835854111,0.10120872,97450.0,97442.0,0.051294]
[1733835854418,0.10120872,97452.0,97448.0,0.18379376]
[1733835854607,0.3608,97453.0,97449.0,0.00320768]
[1733835854806,0.00012101,97452.0,97450.0,0.00320768]
[1733835855011,0.00012101,97452.0,97451.0,0.00320768]
[1733835855422,0.00012101,97452.0,97443.0,0.051293]
[1733835855618,0.41260901,97453.0,97444.0,0.05890755]
[1733835855619,0.38066051,97453.0,97444.0,0.05890755]
[1733835855810,0.35705025,97453.0,97445.0,0.06211442]
[1733835856127,0.35705025,97453.0,97446.0,0.03649562]
[1733835856128,0.66656125,97453.0,97446.0,0.03649562]
[1733835856305,0.66656125,97453.0,97440.0,0.18379376]
[1733835856306,0.051291,97448.0,97447.0,0.03649562]
[1733835856506,0.051291,97448.0,97447.0,0.05122127]
[1733835856710,0.05139278,97448.0,97447.0,0.05122127]
[1733835856909,0.05139278,97448.0,97447.0,0.01280299]
[1733835858615,0.051298,97435.0,97434.0,0.19200376]
[1733835858820,0.412098,97435.0,97434.0,0.19200376]
[1733835859008,0.412098,97435.0,97434.0,0.0114176]
[1733835861211,0.412098,97435.0,97434.0,0.00821]
[1733835863815,0.42252497,97435.0,97434.0,0.00821]
[1733835864810,0.42252497,97435.0,97434.0,0.0463456]
[1733835865513,0.42252497,97435.0,97434.0,0.00821]
[1733835865718,0.37122697,97435.0,97434.0,0.01141778]
[1733835865917,0.37122697,97435.0,97434.0,0.01141772]
[1733835866113,0.37122697,97435.0,97434.0,0.04952185]
[1733835866721,0.42252497,97435.0,97434.0,0.04631413]
[1733835866918,0.42252497,97435.0,97434.0,0.04952173]
[1733835867523,0.44296161,97435.0,97434.0,0.04952173]
[1733835867821,0.44296161,97435.0,97434.0,0.04631413]
[1733835869234,0.39166361,97435.0,97434.0,0.01141777]
[1733835869521,0.39166361,97435.0,97434.0,0.04917556]
[1733835869726,0.39166361,97435.0,97434.0,0.05430778]
[1733835870431,0.39166361,97435.0,97434.0,0.06686221]
[1733835870615,0.39166361,97435.0,97434.0,0.30727584]
[1733835870820,0.37122697,97435.0,97434.0,0.30727584]
[1733835871013,0.01042697,97435.0,97434.0,0.06172999]
[1733835871223,0.46256873,97450.0,97446.0,0.051292]
[1733835871224,0.46200872,97450.0,97446.0,0.051292]
[1733835871528,0.46252873,97450.0,97447.0,0.05351999]
[1733835871729,0.01034978,97448.0,97447.0,0.05865118]
[1733835873215,0.01034978,97448.0,97447.0,0.10994318]
[1733835873732,0.01034978,97448.0,97447.0,0.11094318]
[1733835874920,0.06164078,97448.0,97447.0,0.05965037]
[1733835875734,0.02956973,97448.0,97447.0,0.05965037]
[1733835875931,0.02956973,97448.0,97447.0,0.23870601]
[1733835876123,0.02956973,97448.0,97447.0,0.0545192]
[1733835876321,0.02956973,97448.0,97447.0,0.04088549]
[1733835876322,0.03976438,97448.0,97447.0,0.04088549]
[1733835876724,0.03989661,97448.0,97447.0,0.04088549]
[1733835877421,0.03989661,97448.0,97447.0,0.2250723]
[1733835878222,0.03989661,97448.0,97447.0,0.22507251]
[1733835879831,0.03989661,97448.0,97447.0,0.0408857]
[1733835881528,0.03989661,97448.0,97447.0,0.01639511]
[1733835881833,0.33989661,97448.0,97433.0,0.15902681]
[1733835882035,0.051302,97427.0,97426.0,0.24557474]
[1733835882332,0.051302,97427.0,97426.0,0.00513248]
[1733835882634,0.051302,97427.0,97426.0,0.00821]
[1733835884320,0.051302,97427.0,97426.0,0.01021]
[1733835884530,0.051302,97427.0,97426.0,0.01534249]
[1733835884834,0.06173167,97427.0,97426.0,0.01534248]
[1733835885429,0.06173167,97427.0,97426.0,0.01021]
[1733835886827,0.01042967,97427.0,97426.0,0.06664562]
[1733835887135,0.7423291,97434.0,97426.0,0.01534262]
[1733835887432,0.7522471,97434.0,97433.0,0.051299]
[1733835887624,0.7522471,97434.0,97433.0,0.05643162]
[1733835887823,0.72017061,97434.0,97433.0,0.05643162]
[1733835888034,0.72017061,97434.0,97433.0,0.00513262]
[1733835888233,0.77146861,97434.0,97433.0,0.00513262]
[1733835888427,0.77146861,97434.0,97433.0,0.01776322]
[1733835888824,0.77146861,97434.0,97433.0,0.0126306]
[1733835889127,0.77146861,97434.0,97433.0,0.01776281]
[1733835889328,0.77146861,97434.0,97433.0,0.0126306]
[1733835889534,0.77246861,97434.0,97433.0,0.01776281]
[1733835890732,0.77246861,97434.0,97433.0,0.26332506]
[1733835891625,0.77246861,97434.0,97433.0,0.24556225]
[1733835891937,0.77246861,97434.0,97433.0,0.01768127]
[1733835893338,0.77246861,97434.0,97433.0,0.01768128]
[1733835893826,0.77246861,97434.0,97433.0,0.02088891]
[1733835894729,0.77246861,97434.0,97433.0,0.26652092]
[1733835894941,0.77246861,97434.0,97433.0,0.05342497]
[1733835895438,0.77246861,97434.0,97433.0,0.29905698]
[1733835895935,0.77246861,97434.0,97433.0,0.05342497]
[1733835896838,0.77246861,97434.0,97433.0,0.29905698]
[1733835897437,0.77246861,97434.0,97433.0,0.05342497]
[1733835897825,0.77246861,97434.0,97433.0,0.04087606]
[1733835898033,0.74039078,97434.0,97433.0,0.05341942]
[1733835898424,0.74039078,97434.0,97433.0,0.29905143]
[1733835898639,0.74039078,97434.0,97433.0,0.05341942]
[1733835898828,0.74039078,97434.0,97433.0,0.04087602]
[1733835899032,0.74039078,97434.0,97433.0,0.28651314]
[1733835900035,0.58641666,97434.0,97433.0,0.04087602]
[1733835900240,0.58641666,97434.0,97433.0,0.28650002]
[1733835900431,0.58641666,97434.0,97433.0,0.04087602]
[1733835900936,0.051302,97428.0,97427.0,0.18069139]
[1733835901638,0.051302,97428.0,97426.0,0.00821]
[1733835901639,0.051302,97427.0,97426.0,0.00821]
[1733835903233,0.051303,97426.0,97408.0,0.30701257]
[1733835903430,0.412112,97409.0,97408.0,0.30701257]
[1733835903642,0.412112,97409.0,97408.0,0.27712438]
[1733835904031,0.412112,97409.0,97408.0,0.25493538]
[1733835904638,0.051319,97394.0,97393.0,0.0376]
[1733835906443,0.10120872,97403.0,97393.0,0.0376]
[1733835906745,0.11139879,97403.0,97402.0,0.051315]
[1733835906940,0.36132001,97409.0,97402.0,0.051315]
[1733835907244,0.42227326,97409.0,97402.0,0.051315]
[1733835907443,0.051313,97406.0,97403.0,0.0354]
[1733835908439,0.37096126,97409.0,97403.0,0.0354]
[1733835908647,0.10120872,97412.0,97406.0,0.3608]
[1733835908843,0.10120872,97412.0,97410.0,0.051311]
[1733835909144,0.10120872,97412.0,97411.0,0.0372]
[1733835909849,0.051308,97416.0,97411.0,0.0372]
[1733835910035,0.051308,97415.0,97411.0,0.0372]
[1733835910435,0.3608,97417.0,97411.0,0.0372]
[1733835910737,0.05131,97413.0,97411.0,0.0372]
[1733835910941,0.05131,97413.0,97412.0,0.03707286]
[1733835912546,0.05131,97413.0,97394.0,0.0379]
[1733835912547,0.051315,97402.0,97394.0,0.0379]
[1733835912847,0.051315,97402.0,97401.0,0.40809643]
[1733835913146,0.3608,97405.0,97402.0,0.051315]
[1733835913345,0.3608,97405.0,97404.0,0.051314]
[1733835913539,0.3608,97405.0,97404.0,0.09166194]
[1733835914349,0.3608,97405.0,97404.0,0.04034794]
[1733835915047,0.051312,97408.0,97404.0,0.04334794]
[1733835915346,0.3608,97406.0,97405.0,0.0371392]
[1733835915939,0.32871363,97406.0,97405.0,0.04962]
[1733835916139,0.32871363,97406.0,97405.0,0.0124808]
[1733835916545,0.051313,97407.0,97405.0,0.04992683]
[1733835916746,0.051313,97407.0,97406.0,0.04992683]
[1733835917054,0.051313,97407.0,97406.0,0.04065454]
[1733835917351,0.01311423,97408.0,97406.0,0.04065454]
[1733835917542,0.05131,97411.0,97407.0,0.00320851]
[1733835917741,0.05131,97411.0,97408.0,0.00320851]
[1733835918044,0.05131,97411.0,97409.0,0.00320851]
[1733835918343,0.05131,97411.0,97410.0,0.00320851]
[1733835918742,0.05131,97411.0,97404.0,0.003]
[1733835918743,0.051314,97405.0,97404.0,0.003]
[1733835918949,0.051317,97400.0,97394.0,0.40564849]
[1733835919146,0.051317,97400.0,97395.0,0.00320867]
[1733835919346,0.051317,97400.0,97396.0,0.00320867]
[1733835919542,0.051317,97400.0,97397.0,0.04045345]
[1733835919742,0.051317,97400.0,97398.0,0.04045345]
[1733835920044,0.051317,97400.0,97399.0,0.03734706]
[1733835921248,0.051317,97398.0,97397.0,0.002]
[1733835921554,0.10120872,97404.0,97394.0,0.0379]
[1733835921857,0.051316,97400.0,97399.0,0.002]
[1733835922239,0.05142362,97400.0,97399.0,0.002]
[1733835922852,0.05142362,97400.0,97377.0,9.258e-05]
[1733835922853,0.05132,97393.0,97377.0,9.258e-05]
[1733835923156,0.41212,97393.0,97392.0,0.02069139]
[1733835923352,0.41212,97393.0,97392.0,0.00821]
[1733835923757,0.051328,97378.0,97377.0,9.258e-05]
[1733835924053,0.412128,97378.0,97377.0,0.03767343]
[1733835924245,0.412128,97378.0,97377.0,9.258e-05]
[1733835924446,0.412128,97378.0,97377.0,0.01261535]
[1733835924644,0.412128,97378.0,97352.0,0.0362]
[1733835924645,0.051332,97370.0,97345.0,0.36774849]
[1733835924842,0.051344,97348.0,97347.0,0.03757168]
[1733835925043,0.3608,97354.0,97347.0,0.03757168]
[1733835925345,0.3608,97354.0,97332.0,0.01294697]
[1733835925346,0.3608,97348.0,97332.0,0.01294697]
[1733835925555,0.412152,97333.0,97332.0,0.01294697]
[1733835925744,0.051357,97324.0,97322.0,0.42886014]
[1733835925947,0.3608,97323.0,97322.0,0.91897684]
[1733835926158,0.051359,97319.0,97317.0,0.0388]
[1733835927246,0.051363,97311.0,97310.0,0.59213909]
[1733835927453,0.412163,97311.0,97310.0,0.59101909]
[1733835928546,0.6608,97311.0,97261.0,0.3608]
[1733835928758,0.6608,97311.0,97270.0,0.0742]
[1733835928759,0.10120872,97271.0,97270.0,0.0742]
[1733835929056,0.10120872,97280.0,97270.0,0.1134]
[1733835929645,7.743e-05,97279.0,97270.0,0.1134]
[1733835930053,0.3608,97274.0,97270.0,0.1134]
[1733835930355,0.051383,97273.0,97270.0,0.0742]
[1733835930552,0.3608,97274.0,97270.0,0.0832]
[1733835930744,0.10120872,97280.0,97273.0,0.3608]
[1733835930946,0.3608,97298.0,97273.0,0.3608]
[1733835931151,0.15216246,97290.0,97284.0,0.3608]
[1733835931458,0.51296246,97310.0,97294.0,0.051372]
[1733835931843,0.51296246,97310.0,97288.0,0.3608]
[1733835932053,0.15216246,97298.0,97288.0,0.3608]
[1733835932454,0.00012682,97309.0,97297.0,0.3608]
[1733835932744,0.00012682,97309.0,97308.0,0.3608]
[1733835933452,0.051358,97322.0,97308.0,0.3608]
[1733835933453,0.3608,97326.0,97308.0,0.6608]
[1733835933651,0.15216246,97340.0,97325.0,0.3608]
[1733835933949,0.15216246,97340.0,97328.0,0.051354]
[1733835934448,0.15216246,97340.0,97327.0,0.3608]
[1733835934449,0.15216246,97340.0,97335.0,0.3608]
[1733835934651,0.15216246,97340.0,97326.0,0.0392]
[1733835934652,0.3608,97338.0,97326.0,0.0392]
[1733835935053,0.051354,97329.0,97326.0,0.0392]
[1733835935451,9.489e-05,97333.0,97326.0,0.0392]
[1733835935653,9.489e-05,97333.0,97331.0,0.3608]
[1733835935856,9.489e-05,97333.0,97323.0,0.3608]
[1733835936155,9.489e-05,97333.0,97331.0,0.3608]
[1733835936356,9.489e-05,97333.0,97331.0,0.412152]
[1733835936664,0.00109489,97333.0,97331.0,0.3608]
[1733835937548,0.051352,97332.0,97323.0,0.3608]
[1733835937952,0.15225735,97333.0,97325.0,0.051356]
[1733835938363,0.15225735,97333.0,97332.0,0.412152]
[1733835938558,9.489e-05,97333.0,97332.0,0.412152]
[1733835938752,9.489e-05,97333.0,97332.0,0.3608]
[1733835938953,9.489e-05,97333.0,97332.0,0.412152]
[1733835940766,9.489e-05,97333.0,97332.0,0.419152]
[1733835940966,9.489e-05,97333.0,97332.0,0.421152]
[1733835941263,9.489e-05,97333.0,97332.0,0.3698]
[1733835941764,9.489e-05,97333.0,97332.0,0.3688]
[1733835942562,9.489e-05,97333.0,97332.0,0.3668]
[1733835942960,9.489e-05,97333.0,97332.0,0.3618]
[1733835943155,9.489e-05,97333.0,97332.0,0.004]
[1733835943663,0.01310701,97333.0,97332.0,0.004]
[1733835944164,0.01310701,97333.0,97332.0,0.003]
[1733835944364,0.051356,97325.0,97318.0,0.3608]
[1733835944563,0.051355,97326.0,97311.0,0.0364]
[1733835944871,0.051355,97326.0,97308.0,0.3608]
[1733835944872,0.051359,97319.0,97308.0,0.3608]
[1733835945060,0.20352146,97319.0,97308.0,0.3608]
[1733835945865,0.20352146,97319.0,97312.0,0.051362]
[1733835945866,0.15216246,97319.0,97312.0,0.051362]
[1733835946065,0.15216246,97319.0,97318.0,0.3608]
[1733835946274,0.15216246,97330.0,97318.0,0.3608]
[1733835946456,0.15216246,97330.0,97320.0,0.051358]
[1733835946659,0.15216246,97330.0,97318.0,0.3608]
[1733835947364,0.051354,97328.0,97318.0,0.3608]
[1733835947870,0.15216246,97330.0,97320.0,0.002]
[1733835948570,0.15216246,97330.0,97323.0,0.051357]
[1733835948795,9.489e-05,97333.0,97327.0,0.3608]
[1733835949075,9.489e-05,97333.0,97332.0,0.051352]
[1733835950272,9.489e-05,97333.0,97332.0,0.08762535]
[1733835950574,0.051348,97340.0,97333.0,0.051351]
[1733835950783,0.05135,97337.0,97335.0,0.3608]
[1733835951075,0.051346,97343.0,97335.0,0.3608]
[1733835951381,0.0125979,97348.0,97346.0,0.051344]
[1733835951581,0.15216246,97370.0,97348.0,0.051344]
[1733835951873,0.05134,97355.0,97354.0,0.3608]
[1733835953468,0.05134,97355.0,97344.0,0.051345]
[1733835953676,0.05134,97355.0,97354.0,0.001]
[1733835954265,0.07163626,97355.0,97354.0,0.001]
[1733835954577,0.0847405,97355.0,97354.0,0.001]
[1733835955979,0.0847405,97355.0,97351.0,0.3608]
[1733835956478,0.0334005,97355.0,97351.0,0.3608]
[1733835956770,0.051344,97348.0,97342.0,0.3608]
[1733835956969,0.07163626,97355.0,97343.0,0.03636931]
[1733835957172,0.051341,97354.0,97344.0,0.03636931]
[1733835957371,0.051341,97354.0,97342.0,0.3608]
[1733835957576,0.051341,97353.0,97343.0,0.03636695]
[1733835957873,0.051341,97353.0,97344.0,0.03636695]
[1733835958077,0.051341,97353.0,97342.0,0.3638]
[1733835958283,0.051341,97353.0,97343.0,0.03641416]
[1733835958483,0.051341,97353.0,97344.0,0.03641416]
[1733835958668,0.051341,97353.0,97351.0,0.3608]
[1733835958869,0.051341,97353.0,97343.0,0.051346]
[1733835959077,0.051341,97353.0,97345.0,0.3608]
[1733835959573,0.12160732,97355.0,97342.0,0.3638]
[1733835959775,0.12160732,97355.0,97350.0,0.412143]
[1733835959975,0.051341,97354.0,97344.0,0.051346]
[1733835960176,0.051341,97354.0,97345.0,0.001]
[1733835960766,0.12160732,97355.0,97342.0,0.3608]
[1733835960975,0.051343,97350.0,97342.0,0.3638]
[1733835961474,0.12160732,97355.0,97343.0,0.0364442]
[1733835961673,0.12160732,97355.0,97344.0,0.0364442]
[1733835961873,0.12160732,97355.0,97345.0,0.0364442]
[1733835962070,0.12160732,97355.0,97347.0,0.051344]
[1733835962264,0.12160732,97355.0,97348.0,0.0364442]
[1733835962469,0.051341,97353.0,97349.0,0.0364442]
[1733835962668,0.051342,97351.0,97350.0,0.0364442]
[1733835962869,0.13461159,97355.0,97343.0,0.051346]
[1733835963071,0.13461159,97355.0,97345.0,0.052345]
[1733835963492,0.18595159,97355.0,97347.0,0.051344]
[1733835963979,0.18595159,97355.0,97344.0,0.30355461]
[1733835963980,0.01300427,97355.0,97354.0,0.05134]
[1733835964168,0.3608,97362.0,97359.0,0.051338]
[1733835964374,0.37354251,97362.0,97360.0,0.03659658]
[1733835964579,0.12112022,97372.0,97361.0,0.44871766]
[1733835964880,0.12112022,97372.0,97371.0,0.051332]
[1733835965081,0.051319,97395.0,97383.0,0.051325]
[1733835965380,0.01294573,97393.0,97383.0,0.44870566]
[1733835966077,0.15151839,97384.0,97383.0,0.44870566]
[1733835967871,0.15151839,97384.0,97383.0,0.45770566]
[1733835968681,0.15151839,97384.0,97383.0,0.46170566]
[1733835968980,0.1,97400.0,97383.0,0.74207369]
[1733835968981,0.051324,97386.0,97383.0,0.74207369]
[1733835969186,0.15181173,97400.0,97384.0,0.67399645]
[1733835969187,0.02010889,97398.0,97384.0,0.67399645]
[1733835969374,0.051323,97388.0,97385.0,0.24446986]
[1733835969580,0.02010889,97398.0,97386.0,0.03658066]
[1733835969874,0.15181173,97410.0,97383.0,0.61934986]
[1733835969875,0.051315,97403.0,97397.0,0.051318]
[1733835970082,0.00011163,97402.0,97399.0,0.3608]
[1733835970586,0.02087116,97402.0,97399.0,0.3608]
[1733835970882,0.02087116,97402.0,97401.0,0.051316]
[1733835970883,0.00011163,97402.0,97401.0,0.051316]
[1733835971971,0.01291705,97410.0,97406.0,0.051313]
[1733835972187,0.19081173,97420.0,97399.0,0.3618]
[1733835972188,0.55161173,97420.0,97399.0,0.413117]
[1733835972386,0.051315,97402.0,97401.0,0.001]
[1733835972574,0.3608,97404.0,97401.0,0.001]
[1733835972975,0.3608,97404.0,97401.0,0.004]
[1733835973173,9.076e-05,97403.0,97401.0,0.004]
[1733835973877,9.076e-05,97403.0,97402.0,0.051315]
[1733835974790,9.076e-05,97403.0,97401.0,0.003]
[1733835975085,0.01057666,97403.0,97401.0,0.003]
[1733835975680,0.051315,97402.0,97401.0,0.003]
[1733835976983,0.01057666,97403.0,97401.0,0.003]
[1733835977191,0.01057666,97403.0,97401.0,0.415116]
[1733835977390,9.076e-05,97403.0,97401.0,0.414116]
[1733835978193,9.076e-05,97403.0,97401.0,0.3628]
[1733835978391,0.05140576,97403.0,97401.0,0.3628]
[1733835978594,0.05140576,97403.0,97401.0,0.3638]
[1733835978899,0.05140576,97403.0,97401.0,0.3618]
[1733835979403,0.05140576,97403.0,97401.0,0.001]
[1733835979404,9.076e-05,97403.0,97401.0,0.001]
[1733835979696,9.076e-05,97403.0,97401.0,0.055316]
[1733835980494,9.076e-05,97403.0,97401.0,0.004]
[1733835981294,0.05140576,97403.0,97401.0,0.003]
[1733835981897,0.051315,97402.0,97401.0,0.003]
[1733835982295,0.051315,97402.0,97386.0,0.24446986]
[1733835982296,0.051323,97388.0,97386.0,0.24446986]
[1733835982590,0.051323,97387.0,97386.0,0.24446986]
[1733835982792,0.3608,97395.0,97386.0,0.24446986]
[1733835982998,0.051323,97387.0,97386.0,0.24446986]
[1733835983399,0.3975,97395.0,97386.0,0.24446986]
[1733835983607,0.051321,97391.0,97386.0,0.24446986]
[1733835983798,0.44933901,97395.0,97386.0,0.29579286]
[1733835984104,0.448819,97395.0,97386.0,0.30179286]
[1733835984298,0.448819,97395.0,97386.0,0.006]
[1733835984299,0.3975,97395.0,97386.0,0.006]
[1733835984494,0.051323,97387.0,97386.0,0.006]
[1733835984693,0.051323,97387.0,97386.0,0.008]
[1733835985198,0.412123,97387.0,97386.0,0.008]
[1733835985399,0.412123,97387.0,97386.0,0.006]
[1733835985600,0.3608,97387.0,97386.0,0.008]
[1733835986100,0.412123,97387.0,97386.0,0.008]
[1733835987298,0.051323,97388.0,97386.0,0.008]
[1733835987496,0.051323,97387.0,97386.0,0.008]
[1733835989203,0.051323,97387.0,97386.0,0.006]
[1733835989398,0.051323,97387.0,97386.0,0.008]
[1733835990702,0.02011635,97390.0,97386.0,0.008]
[1733835990903,0.051322,97389.0,97386.0,0.008]
[1733835991401,0.051322,97389.0,97386.0,0.006]
[1733835991605,0.04722274,97395.0,97394.0,0.051319]
[1733835991606,0.01052274,97395.0,97394.0,0.051319]
[1733835991792,0.10124355,97404.0,97394.0,0.03581171]
[1733835991994,0.10124355,97404.0,97398.0,0.051317]
[1733835992201,0.10124355,97404.0,97399.0,0.03581171]
[1733835992404,0.10124355,97404.0,97400.0,0.03581171]
[1733835992702,0.10124355,97404.0,97401.0,0.03581171]
[1733835992904,0.01061557,97403.0,97402.0,0.03581171]
[1733835993108,9.076e-05,97403.0,97402.0,0.03581171]
[1733835993603,9.076e-05,97403.0,97401.0,0.051316]
[1733835994400,9.076e-05,97403.0,97402.0,0.24446986]
[1733835994705,9.076e-05,97403.0,97402.0,0.28020516]
[1733835995509,9.076e-05,97403.0,97402.0,0.24446986]
[1733835995900,9.076e-05,97403.0,97399.0,0.24446986]
[1733835996099,0.051316,97400.0,97397.0,0.24446986]
[1733835996302,0.051317,97399.0,97397.0,0.24446986]
[1733835997096,0.051319,97396.0,97395.0,0.24563332]
[1733835997301,0.051319,97396.0,97395.0,0.28155995]
[1733835998304,0.412119,97396.0,97395.0,0.03592663]
[1733835998496,0.412119,97396.0,97395.0,0.03792663]
[1733836000403,0.3608,97396.0,97395.0,0.03792663]
[1733836000596,0.412118,97396.0,97395.0,0.002]
[1733836001320,0.3608,97396.0,97395.0,0.053319]
[1733836001605,0.3608,97396.0,97395.0,0.33477606]
[1733836002197,9.076e-05,97403.0,97402.0,0.051315]
[1733836002407,9.076e-05,97403.0,97402.0,0.44791514]
[1733836002609,9.076e-05,97403.0,97402.0,0.412115]
[1733836003518,9.076e-05,97403.0,97402.0,0.3608]
[1733836003901,9.076e-05,97403.0,97402.0,0.39643661]
[1733836004405,9.076e-05,97403.0,97402.0,0.3608]
[1733836006104,9.076e-05,97403.0,97402.0,0.39637007]
[1733836011316,9.076e-05,97403.0,97402.0,0.64195618]
[1733836011621,9.076e-05,97403.0,97402.0,0.3608]
[1733836012012,9.076e-05,97403.0,97402.0,0.39628967]
[1733836012316,9.076e-05,97403.0,97402.0,0.3608]
[1733836012908,9.076e-05,97403.0,97400.0,0.24558473]
[1733836012909,0.051315,97402.0,97400.0,0.42977389]
[1733836013111,0.412115,97402.0,97400.0,0.24558473]
[1733836013313,0.051317,97399.0,97393.0,0.18418916]
[1733836013619,0.051317,97398.0,97392.0,0.54498916]
[1733836013923,0.051319,97395.0,97393.0,0.03565686]
[1733836014223,0.051319,97395.0,97394.0,0.21984602]
[1733836014421,0.3608,97402.0,97392.0,0.18418916]
[1733836014717,0.3608,97402.0,97388.0,0.24558473]
[1733836014718,0.051322,97389.0,97388.0,0.24558473]
[1733836015713,0.051326,97382.0,97376.0,0.18418916]
[1733836015907,0.3608,97382.0,97376.0,0.18418916]
[1733836016112,0.051328,97378.0,97376.0,0.18418916]
[1733836016320,0.051328,97378.0,97377.0,0.03581771]
[1733836016817,0.051328,97378.0,97377.0,0.22000687]
[1733836017012,0.051328,97378.0,97377.0,0.03581771]
[1733836017907,0.051328,97378.0,97377.0,0.03981771]
[1733836018213,0.051328,97378.0,97377.0,0.004]
[1733836018715,0.3608,97382.0,97377.0,0.013]
[1733836019024,0.3608,97382.0,97378.0,0.03587714]
[1733836019220,0.3608,97382.0,97379.0,0.03587714]
[1733836019418,0.10124355,97386.0,97381.0,0.18418916]
[1733836019617,0.10124355,97386.0,97384.0,0.051325]
[1733836019618,0.1115393,97386.0,97384.0,0.051325]
[1733836019915,0.01029575,97386.0,97384.0,0.051325]
[1733836020117,0.36132001,97393.0,97384.0,0.051325]
[1733836020422,0.36136001,97393.0,97388.0,0.18419162]
[1733836020619,0.3710268,97393.0,97388.0,0.18419162]
[1733836020804,0.051322,97390.0,97388.0,0.18419162]
[1733836021011,0.051322,97390.0,97387.0,0.18419162]
[1733836021211,0.07234073,97389.0,97388.0,0.03583052]
[1733836021415,0.07234073,97389.0,97387.0,0.18419162]
[1733836021823,0.07234073,97389.0,97388.0,0.001]
[1733836023317,0.07234073,97389.0,97388.0,0.006]
[1733836023618,0.07234073,97389.0,97388.0,0.005]
[1733836024016,0.07234073,97389.0,97387.0,0.002]
[1733836024211,0.07234073,97389.0,97388.0,0.005]
[1733836024816,0.07234073,97389.0,97388.0,0.006]
[1733836025117,0.07234073,97389.0,97388.0,0.001]
[1733836025716,0.19478097,97389.0,97388.0,0.001]
[1733836026408,0.051332,97371.0,97365.0,0.54494969]
[1733836027130,0.10124355,97380.0,97377.0,0.051328]
[1733836027422,0.10124355,97380.0,97370.0,0.24558473]
[1733836027423,0.10124355,97400.0,97379.0,0.3608]
[1733836027612,0.11143283,97400.0,97399.0,0.3608]
[1733836027824,0.01018928,97400.0,97399.0,0.39676905]
[1733836028027,0.10124355,97410.0,97401.0,0.051315]
[1733836028221,0.10124355,97410.0,97402.0,0.07636905]
[1733836028424,0.0104558,97406.0,97402.0,0.0404]
[1733836028632,0.051315,97404.0,97402.0,0.0404]
[1733836028924,0.05140576,97403.0,97402.0,0.18400501]
[1733836030110,0.05140576,97403.0,97400.0,0.0393]
[1733836030111,0.051315,97402.0,97400.0,0.0393]
[1733836030926,0.3608,97401.0,97392.0,0.42960177]
[1733836031224,0.051319,97396.0,97392.0,0.24558473]
[1733836031416,0.10124355,97402.0,97392.0,0.24558473]
[1733836031617,0.10224355,97402.0,97392.0,0.24558473]
[1733836031836,0.10224355,97402.0,97390.0,0.0404]
[1733836031837,0.051318,97397.0,97390.0,0.0404]
[1733836032323,0.10424355,97402.0,97388.0,0.59613904]
[1733836032324,0.3608,97398.0,97388.0,0.3608]
[1733836032622,0.05132,97392.0,97391.0,0.03573255]
[1733836033310,0.051325,97384.0,97382.0,0.18401704]
[1733836033512,0.051325,97384.0,97383.0,0.03584683]
[1733836033714,0.051325,97384.0,97379.0,0.18405796]
[1733836033923,0.051325,97384.0,97380.0,0.03584792]
[1733836034123,0.051325,97383.0,97381.0,0.03584792]
[1733836034516,0.3608,97382.0,97381.0,0.03584792]
[1733836034714,0.3608,97382.0,97372.0,0.18405796]
[1733836034915,0.3608,97382.0,97372.0,0.54485796]
[1733836035132,0.11202057,97390.0,97381.0,0.3608]
[1733836035322,0.11150056,97390.0,97388.0,0.051322]
[1733836035529,0.46204355,97400.0,97381.0,0.3608]
[1733836035824,0.10124355,97391.0,97390.0,0.051322]
[1733836036027,0.15255955,97400.0,97390.0,0.08720881]
[1733836036228,0.10124355,97400.0,97392.0,0.18406962]
[1733836036413,0.051318,97397.0,97392.0,0.18406962]
[1733836036722,0.10124355,97400.0,97393.0,0.03588681]
[1733836036723,0.05132,97394.0,97393.0,0.03588681]
[1733836037028,0.05132,97394.0,97388.0,0.24558473]
[1733836037029,0.05132,97393.0,97390.0,0.18406962]
[1733836037530,0.05132,97393.0,97390.0,0.003]
[1733836037832,0.05132,97392.0,97390.0,0.003]
[1733836038025,0.05132,97392.0,97383.0,0.24558473]
[1733836038026,0.02050637,97396.0,97383.0,0.18412312]
[1733836038224,0.10124355,97393.0,97381.0,0.54492312]
[1733836038521,0.10124355,97393.0,97384.0,0.03581535]
[1733836038736,0.051324,97386.0,97384.0,0.03581535]
[1733836039115,0.051325,97383.0,97382.0,0.03581535]
[1733836039815,0.051325,97383.0,97382.0,0.03585453]
[1733836040227,0.001,97386.0,97384.0,0.006]
[1733836040721,0.001,97386.0,97385.0,0.03585453]
[1733836041827,0.001,97386.0,97385.0,0.22015063]
[1733836042316,0.001,97386.0,97385.0,0.03585453]
[1733836042522,0.051323,97387.0,97385.0,0.03585453]
[1733836042815,0.051323,97387.0,97386.0,0.03585453]
[1733836043231,0.051323,97387.0,97386.0,0.22018768]
[1733836043618,0.051323,97387.0,97386.0,0.03585453]
[1733836043928,0.051323,97387.0,97386.0,0.22220368]